bitfinex/quotes_SOLUSD_20250310
["timestamp","ask_amount","ask_price","bid_price","bid_amount"]
[1741623718180,204.87404037,121.39,121.38,0.03]
[1741623718580,75.97404037,121.39,121.38,0.03]
[1741623719807,120.47280874,121.39,121.38,0.0001]
[1741623720103,8.2406,121.35,121.3,42.49876837]
[1741623720273,9.84,121.34,121.29,1.5409]
[1741623720599,9.84,121.34,121.32,42.49876837]
[1741623720903,18.64964886,121.33,121.29,1.5409]
[1741623721200,18.64964886,121.33,121.26,0.063]
[1741623721201,0.28432314,121.32,121.26,0.063]
[1741623721377,18.64964886,121.31,121.26,42.56176837]
[1741623721572,18.64964886,121.3,121.26,0.063]
[1741623721769,18.64964886,121.28,121.26,0.063]
[1741623721985,18.933972,121.28,121.26,0.063]
[1741623722200,69.67804037,121.28,121.26,0.063]
[1741623722595,71.67804037,121.28,121.26,0.063]
[1741623722778,0.28432314,121.27,121.26,0.063]
[1741623722980,192.33274037,121.27,121.26,0.063]
[1741623723196,145.23274037,121.27,121.26,0.063]
[1741623723501,143.23274037,121.27,121.26,0.063]
[1741623723707,145.23274037,121.27,121.26,0.063]
[1741623724206,79.51874037,121.27,121.26,0.063]
[1741623724373,100.9223268,121.27,121.26,0.063]
[1741623724705,102.9223268,121.27,121.26,0.063]
[1741623724879,100.9223268,121.27,121.26,0.063]
[1741623725508,18.64964886,121.26,121.24,0.03]
[1741623725673,0.28432314,121.19,121.12,1.6079]
[1741623725876,82.55200366,121.16,121.12,1.6079]
[1741623726095,63.9023548,121.15,121.12,1.6079]
[1741623726287,9.84,121.18,121.12,1.6079]
[1741623726485,63.9023548,121.14,121.12,1.6079]
[1741623726698,92.39200366,121.13,121.07,16.2134]
[1741623727007,9.84,121.13,121.07,36.8626]
[1741623727301,9.84,121.13,121.1,63.9023548]
[1741623727504,9.84,121.13,121.09,63.9023548]
[1741623727671,9.84,121.13,121.11,63.9023548]
[1741623727874,9.84,121.16,121.12,63.9023548]
[1741623728186,9.84,121.16,121.1,8.2576]
[1741623728187,0.15489725,121.14,121.1,8.2576]
[1741623728392,18.64964886,121.13,121.09,63.9023548]
[1741623728803,82.55200366,121.13,121.08,72.1613548]
[1741623729191,18.64964886,121.13,121.09,63.9023548]
[1741623729388,18.64964886,121.13,121.08,72.1613548]
[1741623729692,0.15489725,121.14,121.1,63.9023548]
[1741623730004,0.15489725,121.14,121.08,27.9065]
[1741623730181,0.15489725,121.14,121.08,7.259]
[1741623730182,18.64964886,121.12,121.08,7.259]
[1741623730376,9.84,121.11,121.08,7.259]
[1741623730797,9.84,121.11,121.08,71.1613548]
[1741623731382,9.84,121.11,121.08,7.259]
[1741623731906,9.84,121.11,121.07,73.7697548]
[1741623732088,9.84,121.11,121.08,63.9023548]
[1741623732406,9.84,121.11,121.07,9.8674]
[1741623732702,73.7423548,121.11,121.07,9.8674]
[1741623732904,9.84,121.11,121.08,63.9023548]
[1741623733071,9.84,121.11,121.07,73.7697548]
[1741623733478,0.15489725,121.14,121.1,63.9023548]
[1741623733681,9.99489725,121.14,121.12,63.9023548]
[1741623733911,9.99489725,121.14,121.11,63.9023548]
[1741623734213,9.99489725,121.14,121.13,63.9023548]
[1741623734378,9.725e-05,121.14,121.13,63.9023548]
[1741623734580,4.445e-05,121.15,121.13,129.52157117]
[1741623734778,4.802e-05,121.16,121.15,20.0]
[1741623735013,4.802e-05,121.16,121.15,83.9023548]
[1741623735213,7.629e-05,121.17,121.16,0.14216157]
[1741623735509,7.629e-05,121.17,121.16,63.9023548]
[1741623735808,7.629e-05,121.17,121.16,8.2535]
[1741623736206,9.84007629,121.17,121.15,72.1564548]
[1741623736508,9.84007629,121.17,121.14,72.1569548]
[1741623736804,9.84007629,121.17,121.15,63.9023548]
[1741623737309,9.84007629,121.17,121.16,63.9023548]
[1741623737690,7.629e-05,121.17,121.16,72.1558548]
[1741623737895,7.629e-05,121.17,121.16,72.29801637]
[1741623738382,7.629e-05,121.17,121.16,72.1558548]
[1741623739096,7.629e-05,121.17,121.16,72.29801637]
[1741623739495,0.17537427,121.18,121.16,72.29801637]
[1741623739694,0.17537427,121.18,121.16,8.2535]
[1741623739897,0.17537427,121.18,121.17,63.9023548]
[1741623741815,0.17537427,121.18,121.17,72.1551548]
[1741623741989,0.17537427,121.18,121.17,8.2528]
[1741623742190,0.17537427,121.18,121.17,72.1551548]
[1741623743087,0.17537427,121.18,121.17,20.0]
[1741623743413,0.17537427,121.18,121.17,83.9023548]
[1741623743787,0.17537427,121.18,121.17,92.1551548]
[1741623744886,0.17537427,121.18,121.17,92.29731637]
[1741623745226,7.427e-05,121.18,121.17,92.43947794]
[1741623747394,7.427e-05,121.18,121.17,92.1551548]
[1741623748193,0.16083557,121.18,121.17,92.29731637]
[1741623748507,0.22383557,121.18,121.17,71.00405619]
[1741623748905,3.557e-05,121.18,121.17,71.00405619]
[1741623749812,3.557e-05,121.18,121.17,71.14621776]
[1741623751098,0.17892821,121.2,121.19,1.69306157]
[1741623751307,0.17892821,121.2,121.19,64.30215619]
[1741623752148,0.17892821,121.2,121.19,72.55365619]
[1741623752597,0.17892821,121.2,121.19,72.69581776]
[1741623752807,0.17892821,121.2,121.19,72.55365619]
[1741623753324,2.821e-05,121.2,121.19,72.69581776]
[1741623753896,1.087e-05,121.21,121.2,0.14216157]
[1741623754111,1.087e-05,121.21,121.2,93.61115081]
[1741623754293,4.826e-05,121.22,121.2,93.75331238]
[1741623754510,5.368e-05,121.23,121.22,0.14216157]
[1741623754703,5.368e-05,121.23,121.22,62.75125619]
[1741623754901,8.07e-06,121.26,121.25,20.14216157]
[1741623755131,8.07e-06,121.26,121.25,106.88805081]
[1741623755302,6.67e-06,121.27,121.26,0.14216157]
[1741623755624,6.67e-06,121.27,121.26,106.7389079]
[1741623755821,6.67e-06,121.27,121.26,111.64121238]
[1741623756033,6.67e-06,121.27,121.26,76.99449462]
[1741623756225,6.67e-06,121.27,121.26,77.13665619]
[1741623756530,6.67e-06,121.27,121.26,70.85579462]
[1741623757023,6.67e-06,121.27,121.26,113.74921238]
[1741623757398,6.67e-06,121.27,121.26,70.85579462]
[1741623758594,6.67e-06,121.27,121.26,70.99795619]
[1741623758798,6.67e-06,121.27,121.26,113.60705081]
[1741623758996,6.67e-06,121.27,121.26,113.74921238]
[1741623759226,6.67e-06,121.27,121.26,70.99795619]
[1741623760713,6.67e-06,121.27,121.26,70.85579462]
[1741623760899,6.67e-06,121.27,121.26,70.99795619]
[1741623761103,6.67e-06,121.27,121.26,113.74921238]
[1741623761404,6.67e-06,121.27,121.26,70.85579462]
[1741623761597,42.60909462,121.32,121.26,28.2467]
[1741623761802,60.75409462,121.33,121.28,42.60909462]
[1741623762011,60.75409462,121.33,121.27,42.60909462]
[1741623762224,42.60909462,121.31,121.26,50.85579462]
[1741623762422,42.60909462,121.32,121.26,50.85579462]
[1741623762639,52.51209462,121.33,121.28,42.60909462]
[1741623762810,9.903,121.33,121.29,62.60909462]
[1741623763507,0.063,121.33,121.29,62.60909462]
[1741623763704,0.063,121.33,121.29,20.0]
[1741623763931,9.883,121.33,121.31,42.60909462]
[1741623764104,9.883,121.33,121.32,42.60909462]
[1741623764821,0.063,121.33,121.32,42.60909462]
[1741623765026,0.063,121.33,121.32,42.75125619]
[1741623765202,0.063,121.33,121.32,42.60909462]
[1741623765909,0.063,121.33,121.29,42.60909462]
[1741623766098,42.60909462,121.31,121.26,42.60909462]
[1741623766298,42.60909462,121.31,121.2,1.5611]
[1741623766299,20.79181043,121.29,121.2,1.5611]
[1741623766501,18.64964886,121.27,121.19,8.2814]
[1741623766733,18.64964886,121.27,121.19,0.03]
[1741623766933,18.64964886,121.27,121.21,42.60909462]
[1741623767166,42.60909462,121.26,121.21,41.60909462]
[1741623767326,42.60909462,121.22,121.19,0.03]
[1741623767506,42.60909462,121.23,121.19,0.03]
[1741623767828,42.60909462,121.2,121.19,0.03]
[1741623768002,52.60230466,121.2,121.19,0.03]
[1741623768413,73.93988704,121.2,121.19,0.03]
[1741623770009,9.99321004,121.2,121.19,20.03]
[1741623770337,73.93988704,121.2,121.19,0.03]
[1741623770842,137.88656404,121.2,121.19,0.03]
[1741623772845,164.7870129,121.2,121.16,0.03]
[1741623773034,63.946677,121.17,121.16,0.03]
[1741623773627,146.54300286,121.17,121.08,0.03]
[1741623773864,63.946677,121.1,121.08,0.17216157]
[1741623774144,63.946677,121.09,121.08,8.2887]
[1741623774357,63.946677,121.09,121.08,28.2887]
[1741623774529,63.946677,121.1,121.08,28.2887]
[1741623775050,63.946677,121.09,121.08,28.2887]
[1741623775629,63.946677,121.1,121.08,28.2887]
[1741623775825,73.766677,121.11,121.08,48.9362]
[1741623776652,9.82,121.11,121.1,20.14216157]
[1741623776964,73.766677,121.16,121.14,0.14216157]
[1741623777132,9.82,121.16,121.14,0.14216157]
[1741623777330,9.82,121.16,121.15,20.14216157]
[1741623777635,73.766677,121.16,121.14,1.6552]
[1741623777832,63.946677,121.15,121.11,6.15266157]
[1741623778032,63.946677,121.13,121.12,20.0]
[1741623778456,63.946677,121.13,121.1,1.6552]
[1741623778662,63.946677,121.11,121.08,0.03]
[1741623778869,63.946677,121.09,121.08,0.03]
[1741623779035,63.946677,121.09,121.08,20.03]
[1741623779237,63.946677,121.09,121.08,0.03]
[1741623779962,63.946677,121.1,121.08,0.03]
[1741623780861,63.946677,121.1,121.08,20.03]
[1741623781063,9.82,121.11,121.08,0.03]
[1741623781370,63.946677,121.1,121.08,0.03]
[1741623781735,150.8541,121.19,121.1,20.0]
[1741623781947,63.946677,121.13,121.1,20.0]
[1741623782152,63.946677,121.11,121.08,0.03]
[1741623782454,63.946677,121.1,121.08,0.03]
[1741623782634,63.946677,121.09,121.08,0.03]
[1741623783252,153.12120286,121.09,121.08,0.03]
[1741623783644,153.12120286,121.09,121.08,0.0001]
[1741623783968,134.471554,121.09,121.08,0.0001]
[1741623784259,153.12120286,121.09,121.08,0.0001]
[1741623784460,90.99808743,121.07,121.06,0.0001]
[1741623784677,18.64964886,121.06,121.04,0.03]
[1741623784864,73.766677,121.05,121.04,0.03]
[1741623785266,9.82,121.05,121.04,0.03]
[1741623785447,73.766677,121.05,121.04,0.03]
[1741623785636,9.82,121.05,121.04,0.03]
[1741623785834,73.766677,121.05,121.04,0.03]
[1741623786759,9.82,121.05,121.04,0.03]
[1741623787176,9.82,121.05,121.04,64.11883857]
[1741623787371,9.82,121.09,121.04,64.26100014]
[1741623787668,9.82,121.09,121.04,0.17216157]
[1741623787847,63.946677,121.09,121.04,83.976677]
[1741623788042,0.16505092,121.06,121.05,64.23100014]
[1741623788275,0.16505092,121.06,121.05,84.23100014]
[1741623788472,0.16505092,121.06,121.05,92.49200014]
[1741623788662,0.16505092,121.06,121.05,20.0]
[1741623788859,0.16505092,121.06,121.05,28.40316157]
[1741623789260,0.16505092,121.06,121.04,0.03]
[1741623789574,73.766677,121.05,121.04,0.03]
[1741623789749,9.82,121.05,121.04,0.03]
[1741623789953,73.766677,121.05,121.04,0.03]
[1741623790154,9.82,121.05,121.04,0.03]
[1741623790951,73.766677,121.05,121.04,0.03]
[1741623791354,0.16505092,121.06,121.04,20.03]
[1741623792186,0.16505092,121.06,121.05,0.14216157]
[1741623792577,0.16505092,121.06,121.05,92.34983857]
[1741623792954,0.16505092,121.06,121.05,28.40316157]
[1741623794765,0.16505092,121.06,121.05,28.261]
[1741623795276,0.16505092,121.06,121.05,8.261]
[1741623795454,0.16505092,121.06,121.04,9.7938]
[1741623795663,0.16505092,121.06,121.04,8.2914]
[1741623796283,63.946677,121.05,121.04,0.03]
[1741623797957,72.207677,121.05,121.04,0.03]
[1741623798763,63.946677,121.05,121.04,0.03]
[1741623800867,0.16505092,121.06,121.04,0.03]
[1741623801080,64.11172792,121.06,121.04,0.03]
[1741623801280,63.946677,121.05,121.04,0.03]
[1741623802264,61.41110191,121.05,121.04,0.03]
[1741623802464,42.76145305,121.05,121.04,0.03]
[1741623802890,51.02245305,121.05,121.04,0.03]
[1741623803185,69.67210191,121.05,121.04,0.03]
[1741623803587,76.01050191,121.05,121.04,0.03]
[1741623803792,0.16505092,121.06,121.04,0.03]
[1741623804000,42.76145305,121.05,121.04,0.03]
[1741623804295,61.41110191,121.05,121.04,0.03]
[1741623804964,69.67210191,121.05,121.04,0.03]
[1741623806380,91.06457988,121.05,121.04,0.03]
[1741623806574,163.57597247,121.05,121.04,0.03]
[1741623807210,65.89181043,121.04,121.03,0.03]
[1741623807490,65.89181043,121.04,120.99,0.03]
[1741623807491,18.64964886,121.0,120.99,0.03]
[1741623807671,73.97393102,121.0,120.99,0.03]
[1741623809299,100.88797988,121.0,120.99,0.03]
[1741623809773,101.03014145,121.0,120.99,0.03]
[1741623809982,100.88797988,121.0,120.99,0.03]
[1741623810775,18.64964886,120.99,120.97,0.03]
[1741623810973,64.15393102,120.98,120.97,0.03]
[1741623811173,18.64964886,120.99,120.97,0.03]
[1741623811390,64.15393102,120.98,120.97,0.03]
[1741623811576,73.97393102,120.98,120.97,0.03]
[1741623811987,156.7775109,120.98,120.97,0.03]
[1741623812295,92.62357988,120.98,120.97,0.03]
[1741623812474,9.82,120.98,120.97,0.03]
[1741623812802,73.97393102,120.98,120.97,0.03]
[1741623814600,64.15393102,120.99,120.97,0.03]
[1741623814779,64.15393102,120.98,120.97,0.03]
[1741623814977,9.82,120.99,120.97,0.03]
[1741623815303,64.15393102,120.98,120.97,0.03]
[1741623815889,9.82,120.99,120.97,0.03]
[1741623816089,64.15393102,120.98,120.97,0.03]
[1741623817599,72.41973102,120.98,120.97,0.03]
[1741623817799,64.15393102,120.98,120.97,0.03]
[1741623818577,72.41973102,120.98,120.97,0.03]
[1741623818783,64.15393102,120.98,120.97,0.03]
[1741623820196,64.15393102,121.02,120.97,0.03]
[1741623820402,9.82,121.01,120.97,0.03]
[1741623820585,64.15393102,120.98,120.97,0.03]
[1741623820899,9.82,121.01,120.97,20.03]
[1741623821103,64.15393102,121.0,120.98,20.0]
[1741623821308,9.82,121.03,121.0,20.0]
[1741623821604,64.15393102,121.01,120.98,29.8703]
[1741623821784,64.15393102,121.0,120.98,29.8703]
[1741623821983,64.15393102,121.01,121.0,20.0]
[1741623822500,64.15393102,121.02,121.01,20.0]
[1741623822684,0.063,120.99,120.98,8.2655]
[1741623823286,0.063,120.99,120.98,14.81902314]
[1741623824017,73.97393102,121.03,121.01,20.0]
[1741623824192,64.15393102,121.02,121.01,20.0]
[1741623824399,73.97393102,121.03,121.01,20.0]
[1741623824693,9.82,121.03,121.01,20.0]
[1741623825087,9.82,121.03,121.0,1.5757]
[1741623825397,9.82,121.03,121.01,28.2632]
[1741623825596,9.82,121.03,121.02,20.0]
[1741623825985,9.82,121.03,121.01,28.2632]
[1741623825986,73.97393102,121.03,121.01,28.2632]
[1741623826402,52.56851405,121.03,121.01,28.2632]
[1741623826699,9.82,121.03,121.0,9.8401]
[1741623827096,9.82,121.03,121.0,30.5012]
[1741623827300,9.82,121.03,121.0,9.8401]
[1741623827502,52.56851405,121.03,121.0,1.5757]
[1741623827691,42.74851405,121.02,121.0,1.5757]
[1741623827895,42.74851405,121.02,121.0,9.84]
[1741623828092,42.91201448,121.01,120.97,9.9535]
[1741623828295,0.16350043,121.01,120.97,9.9535]
[1741623828487,42.91201448,121.01,120.97,9.9535]
[1741623829215,0.16350043,121.01,120.97,30.6197]
[1741623829709,0.16350043,121.01,120.97,73.36821405]
[1741623830303,0.16350043,121.01,121.0,20.0]
[1741623830897,0.16350043,121.01,120.97,73.36821405]
[1741623831213,0.16350043,121.01,120.98,42.74851405]
[1741623831420,0.16350043,121.01,120.97,73.36821405]
[1741623831786,0.16350043,121.01,120.97,52.70201405]
[1741623832008,0.16350043,121.01,120.97,9.9535]
[1741623832215,42.91201448,121.01,120.97,9.9535]
[1741623832515,0.16350043,121.01,120.98,42.74851405]
[1741623832687,0.16350043,121.01,121.0,42.74851405]
[1741623833184,0.16350043,121.01,121.0,20.0]
[1741623833390,0.16350043,121.01,121.0,62.74851405]
[1741623833913,0.16350043,121.01,121.0,28.2644]
[1741623835515,0.16350043,121.01,121.0,71.01291405]
[1741623835813,0.16350043,121.01,121.0,71.29723719]
[1741623836112,0.16350043,121.01,121.0,28.2644]
[1741623837187,0.16350043,121.01,121.0,71.01291405]
[1741623837401,0.16350043,121.01,121.0,8.2644]
[1741623837711,0.16350043,121.01,121.0,51.01291405]
[1741623838411,4.3e-07,121.01,121.0,51.29723719]
[1741623838605,7.418e-05,121.02,121.01,0.28432314]
[1741623838911,7.418e-05,121.02,121.01,63.03283719]
[1741623839693,3.069e-05,121.03,121.01,63.03283719]
[1741623839900,3.069e-05,121.03,121.02,63.03283719]
[1741623840220,3.069e-05,121.03,121.02,71.29583719]
[1741623840396,3.259e-05,121.04,121.03,1.85112314]
[1741623840602,6.092e-05,121.05,121.03,44.59963719]
[1741623840805,6.092e-05,121.05,121.04,63.98705393]
[1741623841319,6.092e-05,121.05,121.04,20.28432314]
[1741623841499,7.863e-05,121.07,121.05,43.03283719]
[1741623841692,0.16926276,121.09,121.05,43.03283719]
[1741623841693,9.117e-05,121.09,121.08,45.329072]
[1741623841911,9.117e-05,121.09,121.08,132.06417191]
[1741623842126,0.063,121.16,121.13,0.28432314]
[1741623842417,0.063,121.16,121.15,42.74851405]
[1741623842603,0.063,121.16,121.15,43.03283719]
[1741623843010,0.063,121.16,121.14,20.0]
[1741623843310,0.0001,121.16,121.15,61.68248605]
[1741623843507,0.063,121.19,121.18,20.14216157]
[1741623843711,0.063,121.19,121.18,64.12778671]
[1741623843902,9.82,121.24,121.18,82.91959714]
[1741623844100,9.82,121.24,121.22,42.74851405]
[1741623844626,9.82,121.24,121.2,0.28432314]
[1741623844921,9.82,121.24,121.2,43.03283719]
[1741623845105,9.82,121.24,121.22,42.74851405]
[1741623845301,0.063,121.25,121.23,42.74851405]
[1741623845617,0.063,121.25,121.24,43.03283719]
[1741623845924,0.063,121.25,121.24,61.68248605]
[1741623846220,0.063,121.25,121.24,51.28093719]
[1741623846428,42.74851405,121.31,121.26,42.74851405]
[1741623846731,6.5331,121.34,121.29,42.74851405]
[1741623846898,6.5331,121.34,121.3,42.74851405]
[1741623847103,42.74851405,121.32,121.29,11.3]
[1741623847504,42.74851405,121.3,121.29,11.3]
[1741623847708,52.54851405,121.3,121.24,11.3]
[1741623847926,42.74851405,121.25,121.21,52.3615489]
[1741623848220,52.54851405,121.24,121.21,11.3]
[1741623849119,9.8,121.24,121.21,11.3]
[1741623849528,9.8,121.24,121.22,42.74851405]
[1741623849758,0.15341106,121.25,121.23,42.74851405]
[1741623849918,0.15341106,121.25,121.24,42.74851405]
[1741623850115,0.15341106,121.25,121.24,54.04851405]
[1741623850313,0.15341106,121.25,121.24,75.15276246]
[1741623850515,0.15341106,121.25,121.24,11.3]
[1741623850727,0.15341106,121.25,121.18,102.5288]
[1741623850728,72.25357352,121.25,121.18,93.2]
[1741623851019,63.85276246,121.19,121.17,11.3]
[1741623851221,63.85276246,121.18,121.16,12.92096658]
[1741623851420,63.85276246,121.17,121.16,12.92096658]
[1741623851809,9.8,121.19,121.16,12.92096658]
[1741623852308,9.8,121.19,121.16,76.77372904]
[1741623852506,9.8,121.19,121.16,85.02722904]
[1741623852708,9.8,121.19,121.18,63.85276246]
[1741623852905,0.15341106,121.25,121.18,63.85276246]
[1741623852906,9.8,121.22,121.18,75.15276246]
[1741623853124,0.15341106,121.25,121.21,63.85276246]
[1741623853308,0.15341106,121.25,121.24,63.85276246]
[1741623853515,0.15341106,121.25,121.24,75.15276246]
[1741623853712,0.15341106,121.25,121.24,11.3]
[1741623853932,0.15341106,121.25,121.24,75.15276246]
[1741623854112,0.15341106,121.25,121.24,83.40086246]
[1741623854436,0.15341106,121.25,121.24,19.5481]
[1741623854609,0.15341106,121.25,121.24,11.3]
[1741623855007,0.15341106,121.25,121.23,11.3]
[1741623855732,63.85276246,121.24,121.19,83.40396246]
[1741623856035,0.15341106,121.25,121.22,8.2494]
[1741623856217,0.15341106,121.25,121.24,63.85276246]
[1741623856419,1.106e-05,121.25,121.24,75.4370856]
[1741623856713,8.885e-05,121.26,121.25,32.23396094]
[1741623856912,7.151e-05,121.28,121.27,38.933972]
[1741623857258,7.151e-05,121.28,121.27,104.02283984]
[1741623857435,4.094e-05,121.3,121.28,18.933972]
[1741623857631,4.094e-05,121.3,121.29,85.08874522]
[1741623857841,4.094e-05,121.3,121.29,83.85276246]
[1741623858032,4.094e-05,121.3,121.29,84.1370856]
[1741623858226,4.094e-05,121.3,121.29,92.3817856]
[1741623858430,4.094e-05,121.3,121.29,103.68177454]
[1741623858815,4.094e-05,121.3,121.29,39.82901208]
[1741623859043,2.259e-05,121.31,121.29,58.47866094]
[1741623859250,2.259e-05,121.31,121.29,39.54468894]
[1741623862148,2.259e-05,121.31,121.3,28.52832314]
[1741623862446,7.153e-05,121.32,121.31,11.29998894]
[1741623863342,7.153e-05,121.32,121.31,11.44215051]
[1741623863545,7.153e-05,121.32,121.31,93.48431208]
[1741623864453,7.153e-05,121.32,121.31,101.44328894]
[1741623865555,7.153e-05,121.32,121.31,11.29998894]
[1741623865735,7.153e-05,121.32,121.28,8.2453]
[1741623866051,7.153e-05,121.32,121.27,11.32998894]
[1741623866345,7.153e-05,121.32,121.28,11.29998894]
[1741623866734,239.23404353,121.32,121.27,0.03]
[1741623866948,18.933972,121.3,121.27,0.03]
[1741623867452,0.28432314,121.3,121.27,0.03]
[1741623868139,0.17215083,121.28,121.27,0.03]
[1741623868334,28.62179969,121.28,121.27,0.03]
[1741623868650,36.86709969,121.28,121.27,0.03]
[1741623869051,9.97215083,121.28,121.27,0.03]
[1741623869236,0.17215083,121.28,121.27,0.03]
[1741623869547,0.17215083,121.28,121.27,11.32998894]
[1741623869548,9.97215083,121.28,121.27,11.32998894]
[1741623869751,0.17215083,121.28,121.27,11.32998894]
[1741623869931,5.083e-05,121.28,121.27,11.61431208]
[1741623870458,5.083e-05,121.28,121.27,19.86031208]
[1741623870834,9.602e-05,121.29,121.28,11.58431208]
[1741623871342,9.602e-05,121.29,121.28,11.29998894]
[1741623871753,0.06309602,121.29,121.28,11.29998894]
[1741623872439,0.06309602,121.29,121.28,19.54528894]
[1741623873038,9.602e-05,121.29,121.28,19.82961208]
[1741623873641,9.602e-05,121.29,121.28,11.58431208]
[1741623874356,9.602e-05,121.29,121.28,30.23396094]
[1741623874859,0.16778811,121.3,121.29,2.28432314]
[1741623875157,0.1533599,121.31,121.3,27.302672]
[1741623875466,0.1533599,121.31,121.3,109.202672]
[1741623875768,0.17777185,121.32,121.31,20.933972]
[1741623875971,4.9935,121.38,121.35,11.26260908]
[1741623876145,4.9935,121.38,121.35,10.96260908]
[1741623877456,4.9935,121.38,121.35,29.61225794]
[1741623877764,4.9935,121.38,121.36,2.28432314]
[1741623877969,4.9935,121.38,121.36,0.28432314]
[1741623878863,4.9935,121.38,121.36,18.933972]
[1741623879071,4.9935,121.38,121.36,0.28432314]
[1741623879368,4.9935,121.38,121.34,10.67828594]
[1741623879533,9.78,121.36,121.34,10.67828594]
[1741623880536,6.4433,121.39,121.34,10.67828594]
[1741623880736,18.64964886,121.38,121.3,10.67828594]
[1741623881735,18.64964886,121.34,121.3,10.67828594]
[1741623882063,12.06432314,121.37,121.3,20.0]
[1741623882064,18.64964886,121.36,121.3,20.0]
[1741623882361,18.64964886,121.36,121.28,0.14216157]
[1741623882563,9.78,121.37,121.3,20.0]
[1741623882737,9.78,121.37,121.3,30.67828594]
[1741623882941,6.4433,121.39,121.31,0.28432314]
[1741623883251,9.78,121.39,121.35,0.28432314]
[1741623883451,9.78,121.39,121.32,1.5031]
[1741623883652,2.0,121.38,121.32,1.5031]
[1741623883848,2.0,121.35,121.32,1.5031]
[1741623884047,2.0,121.37,121.32,1.5031]
[1741623884243,0.03,121.36,121.32,1.5031]
[1741623884552,0.03,121.36,121.32,2.73889201]
[1741623885267,0.03,121.36,121.32,1.5031]
[1741623885576,0.03,121.36,121.33,0.28432314]
[1741623885762,2.03,121.36,121.33,0.28432314]
[1741623886853,0.03,121.36,121.33,0.28432314]
[1741623887566,0.03,121.36,121.34,20.0]
[1741623888151,0.17202842,121.35,121.33,20.0]
[1741623888544,0.17202842,121.35,121.32,20.0]
[1741623888751,0.17202842,121.35,121.33,20.0]
[1741623889846,0.17202842,121.35,121.33,19.36]
[1741623890248,0.17202842,121.35,121.34,0.28432314]
[1741623890756,0.17202842,121.35,121.33,19.36]
[1741623890956,2.17202842,121.35,121.33,19.36]
[1741623891370,2.17202842,121.35,121.32,0.14216157]
[1741623891371,2.0,121.33,121.3,0.28432314]
[1741623891967,11.78,121.32,121.29,81.9]
[1741623892272,9.78,121.32,121.31,0.28432314]
[1741623892469,0.17202842,121.35,121.32,20.0]
[1741623892662,0.17202842,121.35,121.32,21.23571831]
[1741623892962,2.0,121.34,121.32,20.0]
[1741623893272,11.78,121.34,121.3,20.0]
[1741623893441,11.78,121.34,121.31,0.28432314]
[1741623893641,2.0,121.3,121.28,1.29901186]
[1741623893843,11.78,121.29,121.28,0.063]
[1741623894151,30.42964886,121.29,121.28,0.063]
[1741623895658,30.713972,121.29,121.28,0.063]
[1741623896165,31.94977626,121.29,121.28,0.063]
[1741623896472,30.42964886,121.29,121.28,0.063]
[1741623897350,30.713972,121.29,121.28,0.063]
[1741623897550,31.66545312,121.29,121.28,0.063]
[1741623897860,30.42964886,121.29,121.28,0.063]
[1741623898551,29.9945745,121.29,121.28,0.063]
[1741623898978,11.34492564,121.29,121.28,0.063]
[1741623899473,30.27889764,121.29,121.28,0.063]
[1741623900163,20.2145745,121.29,121.28,0.063]
[1741623900480,29.9945745,121.29,121.28,0.063]
[1741623900647,30.27889764,121.29,121.28,0.063]
[1741623900853,1.56492564,121.27,121.26,0.063]
[1741623901177,28.1999019,121.27,121.26,0.063]
[1741623901382,26.6797745,121.27,121.26,0.063]
[1741623901980,26.6797745,121.27,121.21,20.0]
[1741623902155,8.03012564,121.27,121.21,20.0]
[1741623902346,1.56492564,121.22,121.21,20.0]
[1741623902552,11.34492564,121.23,121.21,20.0]
[1741623902969,1.56492564,121.24,121.21,20.0]
[1741623903159,11.36492564,121.26,121.22,20.28432314]
[1741623903367,1.56492564,121.26,121.24,20.0]
[1741623903559,11.36492564,121.28,121.25,20.0]
[1741623903779,1.56492564,121.29,121.27,20.0]
[1741623903958,11.34492564,121.3,121.27,20.0]
[1741623904155,9.78,121.3,121.27,20.0]
[1741623904680,9.78,121.32,121.28,0.28432314]
[1741623904860,218.49202842,121.35,121.32,0.28432314]